fUST/lending_fUST_20250723
["ID","MTS","AMOUNT","RATE_DAILY","PERIOD"]
[374250118,1753254681044,-151.0,0.000245,7]
[374250119,1753254681054,-151.0,0.000245,7]
[374250120,1753254681063,-151.0,0.000245,7]
[374250121,1753254681073,-151.0,0.000245,7]
[374250122,1753254681082,-274.695455,0.000245,7]
[374250123,1753254681092,-274.695455,0.000245,7]
[374250124,1753254681102,-151.0,0.000245,7]
[374250125,1753254681112,-151.0,0.000245,7]
[374250126,1753254681122,-199.806516,0.000245,7]
[374250127,1753254681131,-151.0,0.000245,7]
[374250128,1753254681140,-152.091675,0.000245,2]
[374250129,1753254681150,-151.0,0.000245,7]
[374250130,1753254681160,-151.0,0.000245,7]
[374250131,1753254681170,-358.944216,0.000245,7]
[374250132,1753254681179,-358.944216,0.000245,7]
[374250133,1753254681188,-151.0,0.000245,7]
[374250134,1753254681198,-151.0,0.000245,7]
[374250135,1753254681208,-151.0,0.000245,7]
[374250136,1753254681217,-151.0,0.000245,7]
[374250137,1753254681226,-151.0,0.000245,7]
[374250138,1753254681236,-151.0,0.000245,7]
[374250139,1753254681245,-151.0,0.000245,7]
[374250140,1753254681255,-151.0,0.000245,7]
[374250141,1753254681266,-151.0,0.000245,7]
[374250142,1753254681276,-151.0,0.000245,7]
[374250143,1753254681285,-151.0,0.000245,7]
[374250144,1753254681294,-151.0,0.000245,7]
[374250145,1753254681304,-153.410667,0.000245,7]
[374250146,1753254681314,-188.847154,0.000245,7]
[374250147,1753254681323,-188.847154,0.000245,7]
[374250148,1753254681333,-197.279758,0.000245,7]
[374250149,1753254681342,-251.052736,0.000245,7]
[374250150,1753254681353,-251.052736,0.000245,7]
[374250151,1753254681363,-151.0,0.000245,7]
[374250152,1753254681373,-151.0,0.000245,7]
[374250153,1753254681382,-151.0,0.000245,7]
[374250154,1753254681392,-1677.0,0.00024509,2]
[374250155,1753254681402,-1040.0,0.00024532,2]
[374250156,1753254681411,-500.43,0.00024541,6]
[374250157,1753254681420,-533.8,0.00024557,2]
[374250158,1753254681430,-1496.55,0.00024557,2]
[374250159,1753254681439,-693.51,0.00024557,2]
[374250160,1753254681448,-1677.0,0.00024576,2]
[374250161,1753254681458,-570.81458004,0.00024579,2]
[374250162,1753254681467,-1040.0,0.00024586,2]
[374250163,1753254681476,-509.59567748,0.00024595,2]
[374250164,1753254681485,-13527.88,0.000246,2]
[374250165,1753254681495,-151.0,0.000246,7]
[374250166,1753254681504,-389.38713249,0.00024603,2]
[374250167,1753254681515,-155.754853,0.00024603,2]
[374250168,1753254681524,-160.0,0.00024622,6]
[374250169,1753254681534,-155.554218,0.00024625,2]
[374250170,1753254681543,-155.554219,0.00024625,2]
[374250171,1753254681552,-500.43,0.00024641,5]
[374250172,1753254681562,-151.21472439,0.00024657,2]
[374250173,1753254681572,-189.49059097,0.00024657,2]
[374250174,1753254681582,-500.0,0.00024657,2]
[374250175,1753254681591,-500.0,0.00024657,2]
[374250176,1753254681600,-1871.85,0.00024657,2]
[374250177,1753254681610,-2065.75,0.00024657,2]
[374250178,1753254681619,-2886.62,0.00024657,2]
[374250179,1753254681629,-544.69,0.00024657,2]
[374250180,1753254681638,-1538.75,0.00024657,2]
[374250181,1753254681648,-460.0,0.00024657,2]
[374250182,1753254681658,-1039.56,0.00024657,2]
[374250183,1753254681667,-553.5,0.00024657,2]
[374250184,1753254681676,-2389.46,0.00024657,2]
[374250185,1753254681685,-468.73,0.00024657,2]
[374250186,1753254681695,-1791.55,0.00024657,2]
[374250187,1753254681704,-2491.45,0.00024657,2]
[374250188,1753254681714,-1677.76,0.00024657,2]
[374250189,1753254681724,-3937.54,0.00024657,2]
[374250190,1753254681734,-396.84,0.00024657,2]
[374250191,1753254681744,-514.35,0.00024657,2]
[374250192,1753254681753,-952.29,0.00024657,2]
[374250193,1753254681765,-1984.23,0.00024657,2]
[374250194,1753254681774,-460.0,0.00024657,2]
[374250195,1753254681783,-4764.83,0.00024657,2]
[374250196,1753254681792,-1890.16,0.00024657,2]
[374250197,1753254681802,-473.02,0.00024657,2]
[374250198,1753254681814,-795.21,0.00024657,2]
[374250199,1753254681823,-389.7673449,0.00024658,2]
[374250200,1753254681833,-500.0,0.00024658,2]
[374250201,1753254681842,-1369.90225841,0.00024659,11]
[374250202,1753254681851,-1500.0,0.0002467,2]
[374250203,1753254681861,-1677.0,0.00024682,2]
[374250204,1753254681871,-509.59567748,0.00024695,2]
[374250205,1753254681880,-500.0,0.00024715,2]
[374250206,1753254681890,-389.38713249,0.0002474,2]
[374250207,1753254681900,-155.754853,0.0002474,2]
[374250208,1753254681910,-155.754853,0.0002474,2]
[374250209,1753254681919,-500.43,0.00024741,2]
[374250210,1753254681928,-201.0,0.0002477,12]
[374250211,1753254681938,-155.554218,0.00024777,10]
[374250212,1753254681947,-168.0,0.00024777,2]
[374250213,1753254681956,-168.0,0.00024795,2]
[374250214,1753254681965,-509.59567748,0.00024795,2]
[374250215,1753254681974,-151.0,0.000248,7]
[374250216,1753254681983,-451.06,0.000248,7]
[374250217,1753254681992,-500.0,0.000248,2]
[374250218,1753254682002,-533.8,0.00024831,2]
[374250219,1753254682011,-1496.55,0.00024831,2]
[374250220,1753254682022,-693.51,0.00024831,2]
[374250221,1753254682031,-500.43,0.00024841,4]
[374250222,1753254682041,-500.0,0.00024857,2]
[374250223,1753254682050,-1040.0,0.00024861,2]
[374250224,1753254682059,-1369.90225841,0.00024866,12]
[374250225,1753254682069,-10029.3,0.00024871,7]
[374250226,1753254682078,-1040.0,0.00024879,2]
[374250227,1753254682087,-509.59567748,0.00024895,2]
[374250228,1753254682098,-151.0,0.000249,7]
[374250229,1753254682108,-151.0,0.000249,7]
[374250230,1753254682119,-153.025338,0.000249,7]
[374250231,1753254682128,-151.0,0.000249,7]
[374250232,1753254682137,-151.0,0.000249,7]
[374250233,1753254682147,-151.0,0.000249,7]
[374250234,1753254682157,-274.695455,0.000249,7]
[374250235,1753254682167,-274.695455,0.000249,7]
[374250236,1753254682176,-151.0,0.000249,7]
[374250237,1753254682186,-151.0,0.000249,7]
[374250238,1753254682196,-151.0,0.000249,7]
[374250239,1753254682205,-151.0,0.000249,7]
[374250240,1753254682216,-151.0,0.000249,7]
[374250241,1753254682225,-358.944216,0.000249,7]
[374250242,1753254682235,-358.944216,0.000249,7]
[374250243,1753254682245,-195.283098,0.000249,7]
[374250244,1753254682254,-151.0,0.000249,7]
[374250245,1753254682264,-152.089022,0.000249,7]
[374250246,1753254682274,-151.0,0.000249,7]
[374250247,1753254682283,-153.655033,0.000249,7]
[374250248,1753254682292,-151.0,0.000249,7]
[374250249,1753254682302,-151.0,0.000249,7]
[374250250,1753254682312,-151.0,0.000249,7]
[374250251,1753254682322,-151.0,0.000249,7]
[374250252,1753254682332,-151.0,0.000249,7]
[374250253,1753254682341,-151.0,0.000249,7]
[374250254,1753254682351,-151.0,0.000249,7]
[374250255,1753254682360,-151.0,0.000249,7]
[374250256,1753254682370,-272651.241023,0.000249,2]
[374250257,1753254682380,-188.847154,0.000249,7]
[374250258,1753254682389,-188.847154,0.000249,7]
[374250259,1753254682399,-251.052736,0.000249,7]
[374250260,1753254682409,-251.052736,0.000249,7]
[374250261,1753254682419,-151.0,0.000249,7]
[374250262,1753254682428,-151.0,0.000249,7]
[374250263,1753254682438,-156.798628,0.000249,7]
[374250264,1753254682447,-1154.19270689,0.00024927,2]
[374250265,1753254682457,-500.0,0.00024931,2]
[374250266,1753254682466,-500.0,0.00024931,2]
[374250267,1753254682475,-1871.85,0.00024931,2]
[374250268,1753254682485,-2065.75,0.00024931,2]
[374250269,1753254682495,-2886.62,0.00024931,2]
[374250270,1753254682504,-544.69,0.00024931,2]
[374250271,1753254682514,-1538.75,0.00024931,2]
[374250272,1753254682524,-277.99812951,0.00024931,2]
[374250273,1753254682534,-1039.56,0.00024931,2]
[374250274,1753254682543,-553.5,0.00024931,2]
[374250275,1753254682554,-2389.46,0.00024931,2]
[374250276,1753254682564,-468.73,0.00024931,2]
[374250277,1753254682660,-1791.55,0.00024931,2]
[374250278,1753254682670,-2491.45,0.00024931,2]
[374250279,1753254682680,-1677.76,0.00024931,2]
[374250280,1753254682689,-3937.54,0.00024931,2]
[374250281,1753254682700,-514.35,0.00024931,2]
[374250282,1753254682709,-952.29,0.00024931,2]
[374250283,1753254682719,-1984.23,0.00024931,2]
[374250284,1753254682728,-555.49,0.00024931,2]
[374250285,1753254682738,-4764.83,0.00024931,2]
[374250286,1753254682748,-1890.16,0.00024931,2]
[374250287,1753254682757,-473.02,0.00024931,2]
[374250288,1753254682767,-795.21,0.00024931,2]
[374250289,1753254682777,-500.0,0.00024932,2]
[374250290,1753254682786,-500.43,0.00024941,7]
[374250291,1753254682796,-509.59567748,0.00024995,2]
[374250292,1753254682809,-3523.03,0.00024999,10]
[374250293,1753254682819,-43043.67221669,0.00025,30]
[374250294,1753254683051,-1954.21684062,0.00025,30]
[374250295,1753254683063,-266.8,0.00025,30]
[374250296,1753254683088,-460.0,0.00019178,2]
[374250297,1753254683097,-460.0,0.00020547,2]
[374250298,1753254683107,-4781.24399816,0.00025,30]
[374250299,1753254683301,-683.63590484,0.00019151,2]
[374250300,1753254683313,-468.87213272,0.00019151,2]
[374250301,1753254683325,-2892.72562866,0.00019151,2]
[374250302,1753254683345,-236.5655853,0.00019151,2]
[374250303,1753254683354,-460.0,0.00019178,2]
[374250304,1753254683364,-460.0,0.00019178,2]
[374250305,1753254683374,-460.0,0.00019452,2]
[374250306,1753254683384,-460.0,0.00019452,2]
[374250307,1753254683393,-460.0,0.00019726,2]
[374250308,1753254683403,-460.0,0.00019726,2]
[374250309,1753254683414,-460.0,0.0002,2]
[374250310,1753254683423,-460.0,0.0002,2]
[374250311,1753254683433,-460.0,0.00020173,2]
[374250312,1753254683442,-460.0,0.00020273,2]
[374250313,1753254683451,-460.0,0.00020273,2]
[374250314,1753254683460,-460.0,0.00020447,2]
[374250315,1753254683470,-460.0,0.00020547,2]
[374250316,1753254683479,-460.0,0.00020547,2]
[374250317,1753254683488,-460.0,0.00020721,2]
[374250318,1753254683497,-460.0,0.00020821,2]
[374250319,1753254683506,-460.0,0.00020821,2]
[374250320,1753254683516,-524.24,0.00021095,2]
[374250321,1753254683526,-1778.62,0.00021643,2]
[374250322,1753254683536,-1778.62,0.00021917,2]
[374250323,1753254683545,-9626.50980995,0.00025,30]
[374250324,1753254683556,-2021.44255208,0.00025,2]
[374250325,1753254683565,-151.0,0.00025,7]
[374250326,1753254683574,-185.492364,0.00025,7]
[374250327,1753254683584,-8125.27,0.00025,7]
[374250328,1753254683593,-151.0,0.00025,7]
[374250329,1753254683603,-151.0,0.00025,7]
[374250330,1753254683612,-151.0,0.00025,7]
[374250331,1753254683622,-151.0,0.00025,7]
[374250332,1753254683631,-151.0,0.00025,7]
[374250333,1753254683640,-227.746142,0.00025,7]
[374250334,1753254683650,-151.0,0.00025,7]
[374250335,1753254683659,-157.32009,0.00025,5]
[374250336,1753254683671,-526.15909479,0.00025,30]
[374250337,1753254683680,-526.15909479,0.00025,7]
[374250338,1753254683690,-12622.36869388,0.00025,30]
[374250339,1753254683700,-151.0,0.00025,2]
[374250340,1753254683710,-1000.0,0.00025002,2]
[374250341,1753254683721,-10052.5971629,0.00025026,7]
[374250342,1753254683730,-500.43,0.00025041,6]
[374250343,1753254683740,-155.554218,0.00025043,10]
[374250344,1753254683750,-155.554219,0.00025043,10]
[374250345,1753254683760,-1369.90225841,0.00025072,12]
[374250346,1753254683770,-509.59567748,0.00025095,2]
[374250347,1753254683780,-200.98219254,0.00025099,2]
[374250348,1753254683790,-119449.18326648,0.000251,7]
[374250349,1753254683814,-56427.6059238,0.000251,7]
[374250350,1753254683828,-4873.60560594,0.000251,7]
[374250351,1753254683840,-3941.26134969,0.000251,7]
[374250352,1753254686016,-460.0,0.00019178,2]
[374250353,1753254686026,-287.48382428,0.00019282,2]
[374250354,1753254686037,-252.51617572,0.00019282,2]
[374250356,1753254745110,313.773045,0.00013699,2]
[374250357,1753254903241,22072.92973254,0.0001676,2]
[374250358,1753255030003,488.65,0.00015768,2]
[374250359,1753255114728,482.92,0.00015797,2]
[374250361,1753255201398,476.77,0.00016224,2]
[374250362,1753255203183,1025.509941,0.0001676,2]
[374250364,1753255286330,473.55,0.0001617,2]
[374250365,1753255346449,1065.0,0.00026027,120]
[374250366,1753255374497,467.52,0.0001628,2]
[374250367,1753255394415,154.64413855,0.000176,6]
[374250369,1753255457680,461.57,0.0001577,2]
[374250370,1753255544736,-406.53446392,0.00016773,2]
[374250371,1753255553265,-49.16553608,0.00016773,2]
[374250373,1753255627537,451.81,0.00015792,2]
[374250375,1753255654193,-662.1962915,0.00017228,2]
[374250376,1753255716219,439.54,0.0001355,2]
[374250377,1753255716659,879.07,0.00014782,2]
[374250378,1753255717075,237.64417192,0.00016014,2]
[374250379,1753255717100,1080.96582808,0.00016014,2]
[374250388,1753255799707,405.97,0.00016252,2]
[374250423,1753255832827,-811.94,0.00017729,2]
[374250424,1753255832837,-389.89278791,0.00018073,2]
[374250429,1753255838932,-810.10721209,0.00018073,2]
[374250430,1753255838942,-1200.0,0.00018073,2]
[374250431,1753255838951,-300.0,0.00018073,2]
[374250432,1753255838960,-24900.0,0.00018074,2]
[374250433,1753255838970,-5289.74141327,0.00018183,2]
[374250434,1753255838979,-930.40154365,0.000188,2]
[374250435,1753255838989,-381.97803553,0.000189,2]
[374250436,1753255838998,-1180.93,0.00019068,3]
[374250437,1753255839008,-590.47,0.00019068,3]
[374250438,1753255839017,-295.23,0.00019068,3]
[374250439,1753255839026,-885.72,0.00019068,3]
[374250440,1753255839036,-500.0,0.00019073,2]
[374250441,1753255839045,-3317.4394012,0.00019073,2]
[374250442,1753255839054,-2660.48494445,0.00019073,2]
[374250443,1753255839063,-500.0,0.00019077,2]
[374250444,1753255839073,-558.81915373,0.00019077,2]
[374250445,1753255839084,-500.0,0.00019077,2]
[374250446,1753255839095,-500.0,0.00019077,2]
[374250447,1753255839104,-500.0,0.00019077,2]
[374250448,1753255839113,-453.14964898,0.00019077,2]
[374250449,1753255839123,-500.0,0.00019077,2]
[374250450,1753255839134,-500.0,0.00019077,2]
[374250451,1753255839144,-203.32044787,0.00019077,2]
[374250452,1753255839155,-500.0,0.00019077,2]
[374250453,1753255839164,-406.23307649,0.00019077,2]
[374250454,1753255839174,-500.0,0.00019077,2]
[374250455,1753255839184,-623.94152084,0.00019077,2]
[374250456,1753255839193,-500.0,0.00019077,2]
[374250457,1753255839202,-306196.4129802,0.00019078,2]
[374250458,1753255839212,-17679.06371995,0.00019078,2]
[374250459,1753255839221,-500.0,0.00019173,2]
[374250460,1753255839231,-500.0,0.00019173,2]
[374250461,1753255839240,-500.0,0.00019173,2]
[374250462,1753255839249,-522.44810605,0.00019173,2]
[374250463,1753255839259,-500.0,0.00019173,2]
[374250464,1753255839268,-500.70420921,0.00019173,2]
[374250465,1753255839277,-523.54180738,0.00019173,2]
[374250466,1753255839287,-500.0,0.00019173,2]
[374250467,1753255839296,-500.0,0.00019177,2]
[374250468,1753255839305,-3452.82468624,0.00019177,2]
[374250469,1753255839315,-3452.82468624,0.00019177,2]
[374250470,1753255839324,-500.0,0.00019177,2]
[374250471,1753255839333,-3452.82468624,0.00019177,2]
[374250472,1753255839343,-3452.82468624,0.00019177,2]
[374250473,1753255839352,-394.523577,0.00019177,2]
[374250474,1753255839361,-3452.82468624,0.00019177,2]
[374250475,1753255839371,-500.0,0.00019177,2]
[374250476,1753255839383,-3452.82468624,0.00019177,2]
[374250477,1753255839392,-3452.82468624,0.00019177,2]
[374250478,1753255839402,-3452.82468624,0.00019177,2]
[374250479,1753255839412,-3452.82468624,0.00019177,2]
[374250480,1753255839421,-3452.82468624,0.00019177,2]
[374250481,1753255839430,-500.0,0.00019177,2]
[374250482,1753255839440,-3452.82468624,0.00019177,2]
[374250483,1753255839462,-3625.46592055,0.00019177,2]
[374250484,1753255839472,-3625.46592055,0.00019177,2]
[374250485,1753255839482,-3625.46592055,0.00019177,2]
[374250486,1753255839492,-3625.46592055,0.00019177,2]
[374250487,1753255839501,-3625.46592055,0.00019177,2]
[374250488,1753255839512,-3884.42777201,0.00019177,2]
[374250489,1753255839521,-3884.42777201,0.00019177,2]
[374250490,1753255839531,-3884.42777201,0.00019177,2]
[374250491,1753255839540,-3884.42777201,0.00019177,2]
[374250492,1753255839550,-3884.42777201,0.00019177,2]
[374250493,1753255839559,-3884.42777201,0.00019177,2]
[374250494,1753255839569,-5172.42224376,0.00019177,2]
[374250495,1753255839579,-460.0,0.00019178,2]
[374250496,1753255839588,-460.0,0.00019178,2]
[374250497,1753255839597,-460.0,0.00019178,2]
[374250498,1753255839607,-460.0,0.00019178,2]
[374250499,1753255839620,-460.0,0.00019178,2]
[374250500,1753255839629,-402.05904888,0.00019178,2]
[374250501,1753255839638,-460.0,0.00019178,2]
[374250502,1753255839647,-460.0,0.00019178,2]
[374250503,1753255839659,-460.0,0.00019178,2]
[374250504,1753255839668,-460.0,0.00019178,2]
[374250505,1753255839678,-460.0,0.00019178,2]
[374250506,1753255839688,-460.0,0.00019178,2]
[374250507,1753255839698,-466.00497344,0.00019178,2]
[374250508,1753255839709,-513.28564777,0.00019178,2]
[374250509,1753255839719,-460.0,0.00019178,2]
[374250510,1753255839729,-460.0,0.00019178,2]
[374250511,1753255839739,-460.0,0.00019178,2]
[374250512,1753255839748,-460.48221794,0.00019178,2]
[374250513,1753255839757,-460.0,0.00019178,2]
[374250514,1753255839767,-460.51595713,0.00019178,2]
[374250515,1753255839777,-461.32968337,0.00019178,2]
[374250516,1753255839787,-460.0,0.00019178,2]
[374250517,1753255839796,-460.0,0.00019178,2]
[374250518,1753255839806,-460.0,0.00019178,2]
[374250519,1753255839815,-460.0,0.00019178,2]
[374250520,1753255839825,-460.0,0.00019178,2]
[374250521,1753255839835,-462.32673684,0.00019178,2]
[374250522,1753255839845,-461.19285109,0.00019178,2]
[374250523,1753255839855,-464.33088244,0.00019178,2]
[374250524,1753255839864,-460.0,0.00019178,2]
[374250525,1753255839873,-460.62258522,0.00019178,2]
[374250526,1753255839883,-460.0,0.00019178,2]
[374250527,1753255839893,-460.0,0.00019178,2]
[374250528,1753255839902,-460.0,0.00019178,2]
[374250529,1753255839912,-538.09154101,0.00019178,2]
[374250530,1753255839921,-460.0,0.00019178,2]
[374250531,1753255839931,-517.09189281,0.00019178,2]
[374250532,1753255839941,-460.0,0.00019178,2]
[374250533,1753255839951,-460.0,0.00019178,2]
[374250534,1753255839961,-460.0,0.00019178,2]
[374250535,1753255839970,-460.0,0.00019178,2]
[374250536,1753255839979,-460.0,0.00019178,2]
[374250537,1753255839989,-460.0,0.00019178,2]
[374250538,1753255839998,-220.60765955,0.00019178,2]
[374250539,1753255840008,-460.0,0.00019178,2]
[374250540,1753255840018,-460.0,0.00019178,2]
[374250541,1753255840027,-462.18484371,0.00019178,2]
[374250542,1753255840037,-460.0,0.00019178,2]
[374250543,1753255840047,-460.0,0.00019178,2]
[374250544,1753255840056,-460.0,0.00019178,2]
[374250545,1753255840065,-460.0,0.00019178,2]
[374250546,1753255840075,-460.0,0.00019178,2]
[374250547,1753255840084,-450.54770423,0.00019178,2]
[374250548,1753255840094,-460.0,0.00019178,2]
[374250549,1753255840103,-460.0,0.00019178,2]
[374250550,1753255840113,-460.0,0.00019178,2]
[374250551,1753255840122,-460.0,0.00019178,2]
[374250552,1753255840132,-460.0,0.00019178,2]
[374250553,1753255840142,-460.9452818,0.00019178,2]
[374250554,1753255840154,-460.0,0.00019178,2]
[374250555,1753255840164,-460.0,0.00019178,2]
[374250556,1753255840174,-460.0,0.00019178,2]
[374250557,1753255840184,-460.0,0.00019178,2]
[374250558,1753255840194,-460.0,0.00019178,2]
[374250559,1753255840203,-460.0,0.00019178,2]
[374250560,1753255840213,-460.62441259,0.00019178,2]
[374250561,1753255840223,-460.0,0.00019178,2]
[374250562,1753255840232,-460.0,0.00019178,2]
[374250563,1753255840242,-224.10942657,0.00019178,2]
[374250564,1753255840252,-460.0,0.00019178,2]
[374250565,1753255840262,-460.0,0.00019178,2]
[374250566,1753255840271,-460.59988432,0.00019178,2]
[374250567,1753255840281,-460.0,0.00019178,2]
[374250568,1753255840291,-460.0,0.00019178,2]
[374250569,1753255840300,-460.0,0.00019178,2]
[374250570,1753255840310,-460.0,0.00019178,2]
[374250571,1753255840319,-333.58606783,0.00019178,2]
[374250572,1753255840328,-1399.15,0.00019178,2]
[374250573,1753255840338,-463.1379387,0.00019178,2]
[374250574,1753255840348,-463.64315702,0.00019178,2]
[374250575,1753255840358,-555.61407708,0.00019178,2]
[374250576,1753255840367,-460.0,0.00019178,2]
[374250577,1753255840378,-203.707735,0.00019178,2]
[374250578,1753255840387,-556.73733778,0.00019178,2]
[374250579,1753255840397,-400.39410562,0.00019178,2]
[374250580,1753255840406,-460.0,0.00019178,2]
[374250581,1753255840416,-460.0,0.00019178,2]
[374250582,1753255840426,-460.0,0.00019178,2]
[374250583,1753255840435,-460.0,0.00019178,2]
[374250584,1753255840445,-460.0,0.00019178,2]
[374250585,1753255840455,-460.0,0.00019178,2]
[374250586,1753255840465,-460.0,0.00019178,2]
[374250587,1753255840474,-460.0,0.00019178,2]
[374250588,1753255840483,-460.0,0.00019178,2]
[374250589,1753255840493,-460.0,0.00019178,2]
[374250590,1753255840503,-460.0,0.00019178,2]
[374250591,1753255840512,-460.0,0.00019178,2]
[374250592,1753255840522,-460.0,0.00019178,2]
[374250593,1753255840536,-460.0,0.00019178,2]
[374250594,1753255840546,-460.0,0.00019178,2]
[374250595,1753255840556,-460.0,0.00019178,2]
[374250596,1753255840566,-460.0,0.00019178,2]
[374250597,1753255840577,-460.0,0.00019178,2]
[374250598,1753255840587,-461.28047505,0.00019178,2]
[374250599,1753255840598,-460.0,0.00019178,2]
[374250600,1753255840608,-460.0,0.00019178,2]
[374250601,1753255840621,-460.0,0.00019178,2]
[374250606,1753255840816,-460.0,0.00019178,2]
[374250607,1753255840826,-461.82606316,0.00019178,2]
[374250608,1753255840836,-460.0,0.00019178,2]
[374250609,1753255840846,-460.0,0.00019178,2]
[374250610,1753255840856,-460.0,0.00019178,2]
[374250611,1753255840865,-460.0,0.00019178,2]
[374250612,1753255840875,-460.0,0.00019178,2]
[374250613,1753255840884,-460.0,0.00019178,2]
[374250614,1753255840893,-1002.96416905,0.00019178,2]
[374250615,1753255840903,-460.0,0.00019178,2]
[374250616,1753255840912,-460.0,0.00019178,2]
[374250617,1753255840922,-460.0,0.00019178,2]
[374250618,1753255840931,-460.0,0.00019178,2]
[374250619,1753255840941,-460.0,0.00019178,2]
[374250620,1753255840951,-264.61826684,0.00019178,2]
[374250621,1753255840960,-460.0,0.00019178,2]
[374250623,1753255840970,-460.0,0.00019178,2]
[374250624,1753255840979,-460.0,0.00019178,2]
[374250625,1753255840989,-456.68040546,0.00019178,2]
[374250626,1753255840998,-460.0,0.00019178,2]
[374250627,1753255841009,-460.0,0.00019178,2]
[374250628,1753255841018,-460.0,0.00019178,2]
[374250629,1753255841028,-378.61603953,0.00019178,2]
[374250630,1753255841037,-460.0,0.00019178,2]
[374250631,1753255841046,-460.0,0.00019178,2]
[374250633,1753255841056,-460.0,0.00019178,2]
[374250635,1753255841066,-460.0,0.00019178,2]
[374250636,1753255841076,-462.5272426,0.00019178,2]
[374250638,1753255841086,-460.0,0.00019178,2]
[374250640,1753255841096,-506.20248213,0.00019178,2]
[374250642,1753255841108,-460.0,0.00019178,2]
[374250644,1753255841118,-460.0,0.00019178,2]
[374250646,1753255841128,-460.0,0.00019178,2]
[374250649,1753255841138,-460.0,0.00019178,2]
[374250651,1753255841148,-460.0,0.00019178,2]
[374250652,1753255841157,-460.0,0.00019178,2]
[374250654,1753255841166,-460.0,0.00019178,2]
[374250656,1753255841176,-460.0,0.00019178,2]
[374250658,1753255841186,-460.0,0.00019178,2]
[374250660,1753255841195,-460.0,0.00019178,2]
[374250663,1753255841205,-473.8069119,0.00019178,2]
[374250664,1753255841215,-460.0,0.00019178,2]
[374250666,1753255841224,-460.0,0.00019178,2]
[374250668,1753255841234,-460.0,0.00019178,2]
[374250670,1753255841243,-463.75205763,0.00019178,2]
[374250672,1753255841253,-465.58927261,0.00019178,2]
[374250674,1753255841262,-460.0,0.00019178,2]
[374250676,1753255841271,-460.0,0.00019178,2]
[374250678,1753255841281,-500.0,0.00019178,2]
[374250680,1753255841290,-460.0,0.00019178,2]
[374250682,1753255841300,-460.0,0.00019178,2]
[374250685,1753255841310,-460.0,0.00019178,2]
[374250687,1753255841320,-460.0,0.00019178,2]
[374250688,1753255841329,-460.0,0.00019178,2]
[374250690,1753255841339,-460.0,0.00019178,2]
[374250692,1753255841348,-460.0,0.00019178,2]
[374250694,1753255841357,-460.0,0.00019178,2]
[374250696,1753255841367,-463.53908112,0.00019178,2]
[374250699,1753255841379,-460.0,0.00019178,2]
[374250701,1753255841389,-460.35755226,0.00019178,2]
[374250703,1753255841398,-460.0,0.00019178,2]
[374250705,1753255841407,-460.0,0.00019178,2]
[374250707,1753255841417,-460.0,0.00019178,2]
[374250709,1753255841426,-460.0,0.00019178,2]
[374250711,1753255841435,-460.0,0.00019178,2]
[374250713,1753255841445,-460.0,0.00019178,2]
[374250714,1753255841455,-460.0,0.00019178,2]
[374250716,1753255841465,-460.0,0.00019178,2]